fUSD/lending_fUSD_20260316
["ID","MTS","AMOUNT","RATE_DAILY","PERIOD"]
[408447186,1773645032670,-500.0,0.00018999,2]
[408447187,1773645032679,-500.0,0.00018999,2]
[408447188,1773645032688,-500.0,0.00018999,2]
[408447189,1773645032697,-500.0,0.00018999,2]
[408447190,1773645032706,-500.0,0.00018999,2]
[408447191,1773645032715,-500.0,0.00018999,2]
[408447192,1773645032724,-500.0,0.00018999,2]
[408447193,1773645032734,-151.0,0.00019054,2]
[408447194,1773645032743,-1000.0,0.000192,2]
[408447195,1773645032753,-530.3,0.00019237,2]
[408447196,1773645032762,-1905.78,0.00019342,2]
[408447197,1773645032772,-14341.0614849,0.00019373,2]
[408447198,1773645032782,-166.78,0.00019437,2]
[408447199,1773645032791,-1000.0,0.00019452,7]
[408447200,1773645032802,-1100.0,0.00019452,7]
[408447201,1773645032811,-6003.0,0.00019533,2]
[408447202,1773645032820,-2464.0,0.00019533,2]
[408447203,1773645032831,-294.0,0.00019674,2]
[408447204,1773645032840,-14658.93046756,0.000197,2]
[408447205,1773645032853,-6855.14763106,0.000197,2]
[408447208,1773645037792,-514.90133109,0.000197,2]
[408447209,1773645037858,-558.38385669,0.000197,2]
[408447214,1773645039994,-35470.1180136,0.000197,2]
[408447215,1773645040003,-500.0,0.00019725,2]
[408447216,1773645040012,-150.0,0.00019725,2]
[408447217,1773645040021,-500.0,0.0001978,2]
[408447218,1773645040030,-152.24657196,0.0001978,2]
[408447219,1773645040039,-2453.89642655,0.000198,2]
[408447220,1773645040048,-173.454,0.000198,2]
[408447221,1773645040057,-1511.287,0.000198,2]
[408447222,1773645040066,-4402.2893,0.000198,2]
[408447223,1773645040079,-953.54387,0.000198,2]
[408447224,1773645040088,-953.54387,0.000198,2]
[408447225,1773645040097,-1905.78,0.00019814,2]
[408447226,1773645040106,-150.0,0.00019823,2]
[408447227,1773645040116,-200.0,0.00019823,2]
[408447228,1773645040126,-216.0,0.00019823,2]
[408447229,1773645040135,-201.441,0.00019823,2]
[408447230,1773645040145,-250.0,0.00019823,2]
[408447231,1773645040155,-236.084,0.00019823,2]
[408447232,1773645040165,-219.836,0.00019823,2]
[408447233,1773645040174,-162.197,0.00019823,2]
[408447234,1773645040185,-250.0,0.00019823,2]
[408447235,1773645040195,-3511.0,0.00019823,2]
[408447236,1773645040206,-1044.0,0.00019823,2]
[408447237,1773645040216,-620.0,0.00019823,2]
[408447238,1773645040225,-1344.0,0.00019823,2]
[408447239,1773645040235,-1260.0,0.00019823,2]
[408447240,1773645040245,-1214.0,0.00019823,2]
[408447241,1773645040256,-939.582,0.00019823,2]
[408447242,1773645040265,-500.0,0.00019835,2]
[408447243,1773645040275,-2500.0,0.00019888,2]
[408447244,1773645040285,-9016.8109623,0.00019888,2]
[408447245,1773645040295,-500.0,0.00019889,2]
[408447246,1773645040304,-1000.0,0.000199,2]
[408447247,1773645040313,-13499.5987,0.000199,2]
[408447248,1773645040322,-16432.48034455,0.000199,2]
[408447249,1773645040332,-5000.0,0.000199,2]
[408447250,1773645040341,-150.0,0.000199,2]
[408447251,1773645040351,-11112.39856782,0.000199,2]
[408447252,1773645040360,-152.0,0.0001992,4]
[408447253,1773645040369,-500.0,0.00019944,2]
[408447254,1773645040379,-294.0,0.00019947,2]
[408447255,1773645040389,-500.0,0.00019973,2]
[408447256,1773645040398,-501.14795082,0.00019973,2]
[408447257,1773645040408,-500.0,0.00019973,2]
[408447258,1773645040417,-500.0,0.00019973,2]
[408447259,1773645040426,-502.71070807,0.00019973,2]
[408447260,1773645040437,-500.0,0.00019973,2]
[408447261,1773645040447,-409.01152396,0.0001998,2]
[408447262,1773645040456,-33038.6286398,0.00019988,2]
[408447263,1773645040466,-200.0,0.0001999,2]
[408447264,1773645040476,-151.0,0.00019997,2]
[408447265,1773645040485,-957.4144858,0.00019997,2]
[408447266,1773645040494,-4232.9065744,0.00019997,2]
[408447267,1773645040504,-431.7887314,0.00019997,2]
[408447268,1773645040518,-500.0,0.00019999,2]
[408447269,1773645040527,-553.49386102,0.00019999,2]
[408447270,1773645040538,-333.80551454,0.00019999,2]
[408447271,1773645040548,-500.0,0.00019999,2]
[408447272,1773645040558,-155.0,0.00019999,2]
[408447273,1773645040568,-502.83202664,0.00019999,2]
[408447274,1773645040578,-500.0,0.00019999,2]
[408447275,1773645040588,-500.0,0.00019999,2]
[408447276,1773645040597,-500.0,0.00019999,2]
[408447277,1773645040606,-500.0,0.00019999,2]
[408447278,1773645040616,-500.0,0.00019999,2]
[408447279,1773645040625,-500.0,0.00019999,2]
[408447280,1773645040634,-500.0,0.00019999,2]
[408447281,1773645040643,-197.1,0.00019999,2]
[408447282,1773645040652,-500.0,0.00019999,2]
[408447283,1773645040662,-159.98953286,0.00019999,2]
[408447284,1773645040671,-500.0,0.00019999,2]
[408447285,1773645040680,-500.0,0.00019999,2]
[408447286,1773645040690,-500.0,0.00019999,2]
[408447287,1773645040699,-500.0,0.00019999,2]
[408447288,1773645040709,-500.0,0.00019999,2]
[408447289,1773645040718,-500.0,0.00019999,2]
[408447290,1773645040727,-390.48831084,0.00019999,2]
[408447291,1773645040736,-500.0,0.00019999,2]
[408447292,1773645040746,-168.98062009,0.00019999,2]
[408447293,1773645040755,-155.23217611,0.00019999,2]
[408447294,1773645040764,-287.62393708,0.00019999,2]
[408447295,1773645040775,-500.0,0.00019999,2]
[408447296,1773645040785,-500.0,0.00019999,2]
[408447297,1773645040794,-500.0,0.00019999,2]
[408447298,1773645040804,-500.0,0.00019999,2]
[408447299,1773645040813,-500.0,0.00019999,2]
[408447300,1773645040822,-500.0,0.00019999,2]
[408447301,1773645040831,-500.0,0.00019999,2]
[408447302,1773645040844,-500.0,0.00019999,2]
[408447303,1773645040853,-500.0,0.00019999,2]
[408447304,1773645040862,-500.0,0.00019999,2]
[408447305,1773645040871,-245.86402138,0.00019999,2]
[408447306,1773645040880,-500.0,0.00019999,2]
[408447307,1773645040889,-500.0,0.00019999,2]
[408447308,1773645040899,-500.0,0.00019999,2]
[408447309,1773645040908,-500.0,0.00019999,2]
[408447310,1773645040917,-500.0,0.00019999,2]
[408447311,1773645040926,-500.0,0.00019999,2]
[408447312,1773645040935,-500.0,0.00019999,2]
[408447313,1773645040945,-500.0,0.00019999,2]
[408447314,1773645040954,-247.42062208,0.00019999,2]
[408447315,1773645040963,-500.0,0.00019999,2]
[408447316,1773645040973,-500.0,0.00019999,2]
[408447317,1773645040983,-500.0,0.00019999,2]
[408447318,1773645040992,-500.0,0.00019999,2]
[408447319,1773645041001,-533.91835669,0.00019999,2]
[408447320,1773645041010,-188.00253881,0.00019999,2]
[408447321,1773645041019,-265.38214851,0.00019999,2]
[408447322,1773645041028,-243.14954281,0.00019999,2]
[408447323,1773645041037,-530.80581873,0.00019999,2]
[408447324,1773645041046,-227.19702841,0.00019999,2]
[408447325,1773645041055,-2125.0,0.0002,5]
[408447326,1773645041065,-1696.0,0.0002,5]
[408447327,1773645041074,-4614659.03617888,0.0002,2]
[408447328,1773645041092,-1841.55033991,0.0002,2]
[408447336,1773645044235,-414.0,0.00019533,2]
[408447337,1773645044246,-25924.84845648,0.0002,2]
[408447338,1773645044258,-79358.38434872,0.0002,2]
[408447339,1773645044316,-887.1555738,0.0002,2]
[408447340,1773645044600,-0.02036569,0.0002,2]
[408447350,1773645045762,-276.32589395,0.0002,2]
[408447351,1773645045773,-6414.40577931,0.0002,2]
[408447352,1773645046054,-2744.03676049,0.0002,2]
[408447390,1773645064352,2.76743898,9.435e-05,2]
[408447391,1773645064374,287.91256102,9.435e-05,2]
[408447392,1773645262424,1701.2,9.49e-05,2]
[408447398,1773645950122,-290.68,9.932e-05,2]
[408447399,1773645950146,-259.81680046,0.00010428,2]
[408447400,1773646146144,-30.86319954,0.00010428,2]
[408447401,1773646146165,-290.68,0.00010925,2]
[408447402,1773646146187,-290.68,0.00011422,2]
[408447403,1773646146209,-290.68,0.00011918,2]
[408447404,1773646146230,-290.68,0.00012415,2]
[408447405,1773646146252,-290.68,0.00012911,2]
[408447406,1773646146273,-290.68,0.00013408,2]
[408447407,1773646146295,-290.68,0.00013905,2]
[408447408,1773646146316,-290.68,0.00014401,2]
[408447409,1773646146536,-290.68,0.00014898,2]
[408447410,1773646146556,-200.0,0.00015087,2]
[408447411,1773646146579,-151.0,0.00015087,2]
[408447412,1773646146599,-151.0,0.00015087,2]
[408447413,1773646146619,-500.0,0.00015096,2]
[408447414,1773646146639,-183.31,0.00015214,2]
[408447415,1773646146661,-290.68,0.00015394,2]
[408447416,1773646146683,-290.68,0.00015891,2]
[408447417,1773646146704,-290.68,0.00016388,2]
[408447418,1773646146724,-290.68,0.00016884,2]
[408447419,1773646146746,-300.00003,0.00017,2]
[408447420,1773646146768,-69.22487469,0.00017083,2]
[408447421,1773646156121,-97.43512531,0.00017083,2]
[408447422,1773646159177,-290.68,0.00017381,2]
[408447423,1773646159200,-3.32,0.00017443,2]
[408447424,1773646232131,-163.34,0.00017443,2]
[408447425,1773646232140,-200.0,0.00017719,2]
[408447426,1773646232150,-1500.0,0.00017791,2]
[408447427,1773646232161,-166.66,0.00017803,2]
[408447428,1773646232170,-290.68,0.00017878,2]
[408447429,1773646232179,-500.0,0.00018,2]
[408447430,1773646232188,-205.0,0.00018,2]
[408447431,1773646232197,-500.0,0.00018052,2]
[408447432,1773646232207,-711.67,0.00018052,2]
[408447433,1773646232216,-200.0,0.00018074,2]
[408447435,1773646232225,-2200.4,0.00018101,2]
[408447437,1773646232235,-2811.49,0.00018101,2]
[408447438,1773646232245,-166.66,0.00018162,2]
[408447439,1773646232256,-500.0,0.00018343,2]
[408447440,1773646232265,-500.0,0.00018343,2]
[408447441,1773646232274,-500.0,0.00018343,2]
[408447442,1773646232284,-500.0,0.00018343,2]
[408447443,1773646232293,-500.0,0.00018356,7]
[408447444,1773646232302,-900.0,0.00018356,7]
[408447445,1773646232311,-800.0,0.00018356,7]
[408447446,1773646232320,-290.68,0.00018374,2]
[408447447,1773646232330,-166.66,0.00018522,2]
[408447448,1773646232339,-500.42908469,0.0001886,2]
[408447449,1773646232348,-500.0,0.0001886,2]
[408447450,1773646232357,-500.0,0.0001886,2]
[408447451,1773646232366,-161.04,0.00018871,2]
[408447452,1773646232374,-4653.85,0.00018871,2]
[408447453,1773646232383,-290.68,0.00018871,2]
[408447454,1773646232394,-166.66,0.00018882,2]
[408447455,1773646232404,-383.10920901,0.00018883,2]
[408447456,1773646232414,-500.0,0.00018883,2]
[408447457,1773646232423,-1000.0,0.00018891,2]
[408447458,1773646232432,-10003.52,0.00018959,2]
[408447459,1773646232442,-446.29,0.00018999,2]
[408447460,1773646232451,-500.0,0.00018999,2]
[408447461,1773646232460,-500.0,0.00018999,2]
[408447462,1773646232469,-500.0,0.00018999,2]
[408447463,1773646232479,-500.0,0.00018999,2]
[408447464,1773646232488,-500.0,0.00018999,2]
[408447465,1773646232497,-500.0,0.00018999,2]
[408447466,1773646232507,-500.0,0.00018999,2]
[408447467,1773646232516,-500.0,0.00018999,2]
[408447468,1773646232525,-500.0,0.00018999,2]
[408447469,1773646232534,-500.0,0.00018999,2]
[408447470,1773646232543,-500.0,0.00018999,2]
[408447471,1773646232552,-500.0,0.00018999,2]
[408447472,1773646232561,-500.0,0.00018999,2]
[408447473,1773646232571,-212.5519295,0.00018999,2]
[408447474,1773646232580,-250.0,0.00018999,2]
[408447475,1773646232589,-250.0,0.00018999,2]
[408447476,1773646232598,-250.0,0.00018999,2]
[408447477,1773646232607,-250.0,0.00018999,2]
[408447478,1773646232616,-250.0,0.00018999,2]
[408447479,1773646232625,-250.0,0.00018999,2]
[408447480,1773646232635,-250.0,0.00018999,2]
[408447481,1773646232644,-250.0,0.00018999,2]
[408447482,1773646232653,-250.0,0.00018999,2]
[408447483,1773646232662,-250.0,0.00018999,2]
[408447484,1773646232671,-264.08027263,0.00018999,2]
[408447485,1773646232680,-250.0,0.00018999,2]
[408447486,1773646232689,-250.0,0.00018999,2]
[408447487,1773646232699,-250.0,0.00018999,2]
[408447488,1773646232708,-334.73758888,0.00018999,2]
[408447489,1773646232717,-700.0,0.000191,6]
[408447490,1773646232726,-350.0,0.00019196,2]
[408447491,1773646232735,-2000.0,0.000192,2]
[408447492,1773646232744,-1400.0,0.000192,7]
[408447493,1773646232753,-440.32,0.00019212,2]
[408447494,1773646232762,-500.0,0.00019233,2]
[408447495,1773646232771,-446.29,0.00019273,2]
[408447496,1773646232780,-2100.0,0.000193,7]
[408447497,1773646232789,-3047.2368076,0.00019373,2]
[408447498,1773646232798,-2800.0,0.000194,7]
[408447499,1773646232807,-282.0,0.00019417,2]
[408447500,1773646232816,-14244.39695964,0.00019421,2]
[408447501,1773646232825,-201.18991489,0.00019439,2]
[408447502,1773646232834,-900.0,0.00019452,7]
[408447503,1773646232848,-800.0,0.00019452,7]
[408447504,1773646232858,-282.0,0.00019488,2]
[408447505,1773646232868,-3500.0,0.000195,7]
[408447506,1773646232877,-107952.622,0.000195,2]
[408447507,1773646232887,-361.0,0.00019508,2]
[408447508,1773646232896,-446.29,0.00019547,2]
[408447509,1773646232905,-361.0,0.00019559,2]
[408447510,1773646232914,-282.0,0.00019569,2]
[408447511,1773646232924,-340.791164,0.000196,7]
[408447512,1773646232933,-267.053766,0.000196,7]
[408447513,1773646232943,-205.315083,0.000196,7]
[408447514,1773646232952,-700.0,0.000196,7]
[408447515,1773646232962,-353.267976,0.000196,7]
[408447516,1773646232972,-175.765537,0.000196,7]
[408447517,1773646232981,-175.984359,0.000196,7]
[408447518,1773646232990,-700.0,0.000197,7]
[408447519,1773646233000,-500.0,0.00019725,2]
[408447520,1773646233009,-500.0,0.0001978,2]
[408447521,1773646233019,-1209.03,0.000198,2]
[408447522,1773646233028,-1209.02720048,0.000198,2]
[408447523,1773646233037,-666.66666,0.000198,2]
[408447524,1773646233047,-666.66667,0.000198,2]
[408447525,1773646233056,-700.0,0.000198,7]
[408447526,1773646233066,-361.0,0.00019806,2]
[408447527,1773646233075,-1209.0272004,0.00019811,2]
[408447528,1773646233085,-446.29,0.00019821,2]
[408447529,1773646233094,-1209.0272004,0.00019822,2]
[408447530,1773646233103,-1209.0272004,0.00019833,2]
[408447531,1773646233112,-191.39943757,0.00019835,2]
[408447532,1773646233124,-308.60056243,0.00019835,2]
[408447533,1773646233133,-361.0,0.00019835,2]
[408447534,1773646233142,-1214.0,0.00019843,2]
[408447535,1773646233151,-923.0,0.00019843,2]
[408447536,1773646233170,-6003.0,0.00019843,2]
[408447537,1773646233180,-3511.0,0.00019843,2]
[408447538,1773646233190,-1209.0272004,0.00019844,2]
[408447539,1773646233199,-169.44821159,0.00019846,2]
[408447542,1773646237947,-188.04003596,0.00019846,2]
[408447543,1773646237956,-1209.0272004,0.00019856,2]
[408447544,1773646237966,-1209.0272004,0.00019867,2]
[408447545,1773646237976,-500.0,0.00019873,2]
[408447546,1773646237985,-625.76437274,0.00019878,2]
[408447547,1773646238257,-583.26282766,0.00019878,2]
[408447548,1773646238266,-456.17871534,0.00019888,2]
[408447549,1773646238277,-543.82128466,0.00019888,2]
[408447550,1773646238286,-915.77642384,0.00019889,2]
[408447551,1773646238298,-293.25077656,0.00019889,2]
[408447552,1773646238307,-500.0,0.00019889,2]
[408447553,1773646238317,-500.0,0.00019899,2]
[408447555,1773646238326,-135.76621048,0.00019899,2]
[408447557,1773646238338,-514.12761206,0.00019899,2]
[408447559,1773646238347,-460.80611637,0.00019899,2]
[408447562,1773646238361,-39.19388363,0.00019899,2]
[408447563,1773646238371,-500.0,0.00019899,2]
[408447565,1773646238380,-500.0,0.00019899,2]
[408447567,1773646238389,-500.0,0.00019899,2]
[408447569,1773646238398,-500.0,0.00019899,2]
[408447571,1773646238407,-500.0,0.00019899,2]
[408447573,1773646238417,-500.0,0.00019899,2]
[408447575,1773646238425,-500.0,0.00019899,2]
[408447577,1773646238434,-500.0,0.00019899,2]
[408447579,1773646238443,-500.0,0.00019899,2]
[408447581,1773646238453,-500.0,0.00019899,2]
[408447584,1773646238462,-500.0,0.00019899,2]
[408447585,1773646238472,-500.0,0.00019899,2]
[408447587,1773646238480,-320.80611637,0.00019899,2]
[408447592,1773646240154,-361.01643239,0.00019899,2]
[408447602,1773646243261,-620.0,0.00019843,2]
[408447603,1773646243270,-138.98356761,0.00019899,2]
[408447604,1773646243280,-179.19388363,0.00019899,2]
[408447605,1773646243289,-500.0,0.00019899,2]
[408447606,1773646243298,-500.0,0.00019899,2]
[408447607,1773646243307,-500.0,0.00019899,2]
[408447608,1773646243316,-500.0,0.00019899,2]
[408447609,1773646243325,-500.0,0.00019899,2]
[408447610,1773646243334,-500.0,0.00019899,2]
[408447611,1773646243343,-500.0,0.00019899,2]
[408447612,1773646243352,-500.0,0.00019899,2]
[408447613,1773646243361,-500.0,0.00019899,2]
[408447614,1773646243370,-500.0,0.00019899,2]
[408447615,1773646243379,-500.0,0.00019899,2]
[408447616,1773646243389,-500.0,0.00019899,2]
[408447617,1773646243399,-500.0,0.00019899,2]
[408447618,1773646243408,-500.0,0.00019899,2]
[408447619,1773646243418,-500.0,0.00019899,2]
[408447620,1773646243428,-500.0,0.00019899,2]
[408447621,1773646243437,-500.0,0.00019899,2]
[408447622,1773646243446,-500.0,0.00019899,2]
[408447623,1773646243455,-307.60092342,0.00019899,2]
[408447624,1773646243464,-500.0,0.00019899,2]
[408447625,1773646243474,-500.0,0.00019899,2]
[408447626,1773646243484,-500.0,0.00019899,2]
[408447627,1773646243492,-500.0,0.00019899,2]
[408447628,1773646243501,-500.0,0.00019899,2]
[408447629,1773646243510,-500.0,0.00019899,2]
[408447630,1773646243519,-500.0,0.00019899,2]
[408447631,1773646243529,-500.0,0.00019899,2]
[408447632,1773646243538,-500.0,0.00019899,2]
[408447633,1773646243548,-500.0,0.00019899,2]
[408447634,1773646243557,-546.24976634,0.00019899,2]
[408447635,1773646243566,-500.0,0.00019899,2]
[408447636,1773646243576,-500.0,0.00019899,2]
[408447637,1773646243585,-500.0,0.00019899,2]
[408447638,1773646243594,-543.15857438,0.00019899,2]
[408447639,1773646243603,-500.0,0.00019899,2]
[408447640,1773646243612,-500.0,0.00019899,2]
[408447641,1773646243621,-404.34466674,0.00019899,2]
[408447642,1773646243631,-510.82536405,0.00019899,2]
[408447643,1773646243640,-500.0,0.000199,2]
[408447644,1773646243649,-1209.0272004,0.000199,2]
[408447645,1773646243658,-88027.74954793,0.000199,2]
[408447646,1773646243667,-1764.8609,0.000199,2]
[408447647,1773646243676,-700.0,0.000199,7]
[408447648,1773646243685,-1221.0805748,0.000199,2]
[408447649,1773646243694,-500.0,0.00019944,2]
[408447650,1773646243703,-282.0,0.00019948,2]
[408447651,1773646243712,-150.0,0.00019973,2]
[408447652,1773646243721,-503.60897262,0.00019973,2]
[408447653,1773646243731,-500.0,0.00019973,2]
[408447654,1773646243740,-197.79386672,0.00019973,2]
[408447655,1773646243749,-500.0,0.00019973,2]
[408447656,1773646243758,-500.0,0.00019973,2]
[408447657,1773646243767,-500.0,0.00019973,2]
[408447658,1773646243777,-500.0,0.00019973,2]
[408447659,1773646243786,-160.77177846,0.00019973,2]
[408447660,1773646243795,-500.0,0.00019973,2]
[408447661,1773646243805,-500.0,0.00019973,2]
[408447662,1773646243814,-210.40472314,0.00019973,2]
[408447663,1773646243824,-151.76171,0.00019985,2]
[408447664,1773646243834,-171.12007605,0.0001999,2]
[408447665,1773646243845,-171.12007605,0.0001999,2]
[408447666,1773646243858,-171.12007605,0.0001999,2]
[408447667,1773646243867,-440.33971012,0.00019993,2]
[408447668,1773646243876,-151.0,0.00019997,2]
[408447669,1773646243886,-172.47415444,0.00019999,2]
[408447670,1773646243895,-500.0,0.00019999,2]
[408447671,1773646243905,-500.0,0.00019999,2]
[408447672,1773646243914,-500.0,0.00019999,2]
[408447673,1773646243924,-500.0,0.00019999,2]
[408447674,1773646243933,-500.0,0.00019999,2]
[408447675,1773646243943,-500.0,0.00019999,2]
[408447676,1773646243952,-500.0,0.00019999,2]
[408447677,1773646243962,-500.0,0.00019999,2]
[408447678,1773646243971,-500.0,0.00019999,2]
[408447679,1773646243980,-500.0,0.00019999,2]
[408447680,1773646243989,-500.0,0.00019999,2]
[408447681,1773646243998,-500.0,0.00019999,2]
[408447682,1773646244007,-500.0,0.00019999,2]
[408447683,1773646244016,-500.0,0.00019999,2]
[408447684,1773646244026,-500.0,0.00019999,2]
[408447685,1773646244035,-484.64393261,0.00019999,2]
[408447686,1773646244047,-15.35606739,0.00019999,2]
[408447687,1773646244057,-500.0,0.00019999,2]
[408447688,1773646244067,-500.0,0.00019999,2]
[408447689,1773646244076,-500.0,0.00019999,2]
[408447690,1773646244086,-499.02965767,0.00019999,2]
[408447691,1773646244095,-527.1589517,0.00019999,2]
[408447692,1773646244104,-500.0,0.00019999,2]
[408447693,1773646244114,-255.50531878,0.00019999,2]
[408447694,1773646244123,-500.0,0.00019999,2]
[408447695,1773646244133,-500.0,0.00019999,2]
[408447696,1773646244143,-500.0,0.00019999,2]
[408447697,1773646244152,-580.63408202,0.00019999,2]
[408447698,1773646244161,-500.0,0.00019999,2]
[408447699,1773646244171,-318.82760412,0.00019999,2]
[408447700,1773646244180,-201.28733944,0.00019999,2]
[408447701,1773646244190,-2534.0,0.0002,5]
[408447702,1773646244199,-2034.0,0.0002,5]
[408447703,1773646244209,-40409.89300945,0.0002,2]
[408447704,1773646244220,-180739.78011654,0.0002,2]
[408447705,1773646244231,-514.94894725,0.0002,2]
[408447706,1773646245823,-2041.59274058,0.0002,2]
[408447707,1773646246061,-148702.72491704,0.0002,2]
[408447708,1773646246072,-546.77826056,0.0002,2]
[408447709,1773646246158,-5118.44734335,0.0002,2]
[408447710,1773646246199,-61.16631116,0.0002,2]
[408447713,1773646314542,410.04695,0.00017,2]
[408447716,1773646506563,1611.84266004,9e-05,3]
[408447717,1773646546237,-500.0,0.00018356,7]
[408447718,1773646546258,-700.0,0.00018356,7]
[408447719,1773646546279,-800.0,0.00018356,7]
[408447720,1773646546302,-700.0,0.00019452,7]
[408447721,1773646546323,-800.0,0.00019452,7]
[408447722,1773646546352,-150.0,0.0002,7]
[408447723,1773646546372,-162.75,0.0002,7]
[408447724,1773646546394,-500.0,0.0002,10]
[408447725,1773646554863,150.0,0.0002,7]
[408447726,1773646593477,-289.0,0.000204,120]
[408447727,1773646624364,-9819.0,0.000204,10]
[408447728,1773646624384,-409.0,0.000204,10]
[408447729,1773646664301,500.0,0.00018756,7]
[408447730,1773646668334,276.82,0.000221,14]
[408447731,1773646673931,800.0,0.00018756,7]
[408447732,1773646674691,800.0,0.00019852,7]
[408447733,1773646729039,400.0,0.000192,7]
[408447734,1773646731125,600.0,0.000193,7]
[408447735,1773646733222,800.0,0.000194,7]
[408447736,1773646735470,1000.0,0.000195,7]
[408447737,1773646737415,200.0,0.000196,7]
[408447738,1773646739499,200.0,0.000197,7]
[408447739,1773646741590,200.0,0.000198,7]
[408447740,1773646742131,150.0,0.0002,7]
[408447741,1773646743690,200.0,0.000199,7]
[408447742,1773646798154,800.0,0.000192,7]
[408447743,1773646800260,1300.0,0.000193,7]
[408447744,1773646802367,1700.0,0.000194,7]
[408447745,1773646804606,2200.0,0.000195,7]
[408447746,1773646806599,400.0,0.000196,7]
[408447747,1773646808698,400.0,0.000197,7]
[408447748,1773646810852,400.0,0.000198,7]
[408447749,1773646812944,400.0,0.000199,7]
[408447750,1773646929629,150.0,0.0002,7]
[408447751,1773647119378,150.0,0.0002,7]
[408447752,1773647194140,-185.48048804,0.000165,3]
[408447753,1773647249756,400.0,0.000192,7]
[408447754,1773647251853,600.0,0.000193,7]
[408447755,1773647253942,800.0,0.000194,7]
[408447756,1773647256048,1000.0,0.000195,7]
[408447757,1773647258158,200.0,0.000196,7]
[408447758,1773647260264,200.0,0.000197,7]
[408447759,1773647262391,200.0,0.000198,7]
[408447760,1773647264530,200.0,0.000199,7]
[408447761,1773647283823,-447.0,0.000164,3]
[408447762,1773647283846,-166.76,0.00016712,2]
[408447763,1773647283869,-5533.0,0.000168,5]
[408447764,1773647283892,-1162.0,0.00016855,2]
[408447765,1773647283914,-2500.0,0.00016856,2]
[408447766,1773647283936,-5625.281947,0.00017154,2]
[408447767,1773647283960,-1897.93518165,0.0001724,2]
[408447768,1773647283982,-500.0,0.00017381,2]
[408447769,1773647284004,-205.0,0.00017399,2]
[408447770,1773647284029,-150.0,0.00017611,2]
[408447771,1773647284054,-989.13,0.00017776,2]
[408447772,1773647284076,-800.0,0.00017808,2]
[408447773,1773647284099,-119037.89287135,0.0001797,2]
[408447774,1773647301221,-160.10431885,0.000221,14]
[408447775,1773647301244,-160.67575801,0.000221,14]
[408447776,1773647301266,-433.136505,0.000221,14]
[408447777,1773647307801,150.0,0.0002,7]
[408447778,1773647352095,-371.07,0.00015431,2]
[408447779,1773647352117,-54534.06896,0.0001797,2]
[408447780,1773647364107,-1470.0,0.0001797,2]
[408447781,1773647406306,3974.0,0.000222,14]
[408447784,1773647432074,-498.33366768,0.0001797,2]
[408447785,1773647432139,-345.51780687,0.0001797,2]
[408447786,1773647432206,-835.55184522,0.0001797,2]
[408447787,1773647432218,-2065.36219313,0.0001797,2]
[408447788,1773647432231,-3689.72955575,0.0001797,2]
[408447789,1773647432243,-343.95656253,0.00018,2]